[Event "*** Titled Tuesday Blitz"]
[Site "Chess.com"]
[Date "2020.03.03"]
[Round "3"]
[White "VerdeNotte"]
[Black "Palacios-LLera"]
[Result "1-0"]
[WhiteElo "2800"]
[BlackElo "2513"]
[TimeControl "180+1"]
[EndTime "9:28:30 PST"]
[Termination "VerdeNotte won by resignation"]

1. e4 {[%clk 0:03:00.9]} 1... c5 {[%clk 0:02:59.5]} 2. Nc3 {[%clk 0:03:00.4]}
2... Nc6 {[%clk 0:02:59.6]} 3. f4 {[%clk 0:03:00.3]} 3... g6 {[%clk 0:02:59.6]}
4. Nf3 {[%clk 0:03:00.6]} 4... Bg7 {[%clk 0:02:59.8]} 5. Bb5 {[%clk 0:03:00.7]}
5... Nd4 {[%clk 0:02:59.1]} 6. O-O {[%clk 0:03:00.3]} 6... Nxb5 {[%clk
0:02:53.7]} 7. Nxb5 {[%clk 0:03:01.2]} 7... c4 {[%clk 0:02:52]} 8. d4 {[%clk
0:02:52.7]} 8... cxd3 {[%clk 0:02:50.9]} 9. Qxd3 {[%clk 0:02:51.3]} 9... a6
{[%clk 0:02:49.7]} 10. Nc3 {[%clk 0:02:50.8]} 10... d6 {[%clk 0:02:49.5]} 11.
Be3 {[%clk 0:02:44.3]} 11... Nf6 {[%clk 0:02:43.9]} 12. e5 {[%clk 0:02:44.3]}
12... Bf5 {[%clk 0:02:31.5]} 13. exf6 {[%clk 0:02:42.5]} 13... Bxd3 {[%clk
0:02:31.1]} 14. fxg7 {[%clk 0:02:43]} 14... Rg8 {[%clk 0:02:31.1]} 15. cxd3
{[%clk 0:02:43.2]} 15... Rxg7 {[%clk 0:02:31.4]} 16. Nd5 {[%clk 0:02:39.5]}
16... Rc8 {[%clk 0:02:26.8]} 17. Bb6 {[%clk 0:02:31.8]} 17... Qd7 {[%clk
0:02:25.4]} 18. Bd4 {[%clk 0:02:31.5]} 18... Qb5 {[%clk 0:02:15.8]} 19. Nxe7
{[%clk 0:02:20.4]} 19... Kxe7 {[%clk 0:02:13]} 20. Bxg7 {[%clk 0:02:20.5]} 20...
f6 {[%clk 0:02:12.9]} 21. f5 {[%clk 0:02:14.8]} 21... Kf7 {[%clk 0:02:06.2]} 22.
Bh6 {[%clk 0:02:01.6]} 22... g5 {[%clk 0:02:06]} 23. Rae1 {[%clk 0:01:56.8]}
23... Rc2 {[%clk 0:01:53.4]} 24. Bxg5 {[%clk 0:01:48.5]} 24... Qxb2 {[%clk
0:01:41.1]} 25. Rb1 {[%clk 0:01:26.9]} 25... Rxg2+ {[%clk 0:01:40.4]} 26. Kh1
{[%clk 0:01:27]} 26... Qe2 {[%clk 0:01:40.5]} 27. Rxb7+ {[%clk 0:01:23.3]} 27...
Kg8 {[%clk 0:01:36.6]} 28. Rc1 {[%clk 0:01:17.6]} 28... Qe8 {[%clk 0:01:11]} 29.
Kxg2 {[%clk 0:01:14]} 29... fxg5 {[%clk 0:01:11]} 30. f6 {[%clk 0:01:11.8]}
30... Kf8 {[%clk 0:00:47.5]} 31. f7 {[%clk 0:00:55.2]} 31... Qe2+ {[%clk
0:00:44.7]} 32. Kg3 {[%clk 0:00:55.1]} 32... Qe6 {[%clk 0:00:35.2]} 33. Rb8+
{[%clk 0:00:55]} 1-0

[Event "*** Titled Tuesday Blitz"]
[Site "Chess.com"]
[Date "2020.03.03"]
[Round "3"]
[White "Sankalp_Gupta2003"]
[Black "Ali_rastbod"]
[Result "1-0"]
[WhiteElo "2835"]
[BlackElo "2639"]
[TimeControl "180+1"]
[EndTime "9:28:34 PST"]
[Termination "Sankalp_Gupta2003 won by checkmate"]

1. c4 {[%clk 0:03:00.4]} 1... e5 {[%clk 0:02:57.8]} 2. Nc3 {[%clk 0:03:00.2]}
2... Nc6 {[%clk 0:02:56.4]} 3. g3 {[%clk 0:03:00.3]} 3... g6 {[%clk 0:02:50.9]}
4. Bg2 {[%clk 0:02:59]} 4... Bg7 {[%clk 0:02:51.8]} 5. d3 {[%clk 0:02:50.1]}
5... d6 {[%clk 0:02:51.4]} 6. Rb1 {[%clk 0:02:47.7]} 6... a5 {[%clk 0:02:49.2]}
7. a3 {[%clk 0:02:43.7]} 7... Be6 {[%clk 0:02:42.5]} 8. b4 {[%clk 0:02:39.6]}
8... axb4 {[%clk 0:02:43.4]} 9. axb4 {[%clk 0:02:40.5]} 9... Qd7 {[%clk
0:02:40]} 10. e3 {[%clk 0:02:36]} 10... Nge7 {[%clk 0:02:26.3]} 11. Nd5 {[%clk
0:02:35]} 11... Bxd5 {[%clk 0:02:16.2]} 12. cxd5 {[%clk 0:02:35.7]} 12... Na7
{[%clk 0:02:16.6]} 13. Bb2 {[%clk 0:02:24]} 13... Nb5 {[%clk 0:02:16.2]} 14. Ne2
{[%clk 0:02:23.6]} 14... O-O {[%clk 0:02:15.7]} 15. O-O {[%clk 0:02:22.1]} 15...
f5 {[%clk 0:02:15.5]} 16. f4 {[%clk 0:02:19.5]} 16... Ra2 {[%clk 0:02:11.4]} 17.
Qb3 {[%clk 0:02:15.7]} 17... Rfa8 {[%clk 0:02:07.6]} 18. fxe5 {[%clk 0:02:15.8]}
18... Bxe5 {[%clk 0:01:24]} 19. d4 {[%clk 0:02:15.3]} 19... Bg7 {[%clk
0:01:16.6]} 20. Nf4 {[%clk 0:02:13.4]} 20... Bh6 {[%clk 0:01:11]} 21. e4 {[%clk
0:02:07]} 21... fxe4 {[%clk 0:00:59.3]} 22. Bxe4 {[%clk 0:02:05.9]} 22... Nf5
{[%clk 0:00:39.5]} 23. Bxf5 {[%clk 0:02:00.6]} 23... Qxf5 {[%clk 0:00:40.4]} 24.
Rbe1 {[%clk 0:01:47.2]} 24... Qg4 {[%clk 0:00:20.6]} 25. Ne6 {[%clk 0:01:43.1]}
25... Bg7 {[%clk 0:00:13.9]} 26. Nxg7 {[%clk 0:01:40.2]} 26... Kxg7 {[%clk
0:00:14.8]} 27. Re7+ {[%clk 0:01:37.2]} 27... Kg8 {[%clk 0:00:15.3]} 28. Qe3
{[%clk 0:01:22.9]} 28... Rxb2 {[%clk 0:00:11.6]} 29. Re8+ {[%clk 0:01:22.3]}
29... Rxe8 {[%clk 0:00:10.5]} 30. Qxe8+ {[%clk 0:01:23.2]} 30... Kg7 {[%clk
0:00:07.2]} 31. Qf8# {[%clk 0:01:24]} 1-0

[Event "*** Titled Tuesday Blitz"]
[Site "Chess.com"]
[Date "2020.03.03"]
[Round "3"]
[White "wonderfultime"]
[Black "Zq1"]
[Result "0-1"]
[WhiteElo "3009"]
[BlackElo "2550"]
[TimeControl "180+1"]
[EndTime "9:28:34 PST"]
[Termination "Zq1 won by resignation"]

1. d4 {[%clk 0:03:00.6]} 1... Nf6 {[%clk 0:02:57.5]} 2. Nf3 {[%clk 0:03:01.2]}
2... e6 {[%clk 0:02:57.2]} 3. Bf4 {[%clk 0:03:01.2]} 3... b6 {[%clk 0:02:55.5]}
4. e3 {[%clk 0:02:59.9]} 4... Bb7 {[%clk 0:02:55.6]} 5. Nbd2 {[%clk 0:02:56.2]}
5... Be7 {[%clk 0:02:55.4]} 6. h3 {[%clk 0:02:56.2]} 6... O-O {[%clk 0:02:55]}
7. Bd3 {[%clk 0:02:56.8]} 7... c5 {[%clk 0:02:53.6]} 8. c3 {[%clk 0:02:56.8]}
8... cxd4 {[%clk 0:02:53.3]} 9. cxd4 {[%clk 0:02:57.2]} 9... d6 {[%clk
0:02:52.6]} 10. O-O {[%clk 0:02:56.5]} 10... a6 {[%clk 0:02:52.3]} 11. Rc1
{[%clk 0:02:56.2]} 11... Nbd7 {[%clk 0:02:52.2]} 12. Bh2 {[%clk 0:02:53.4]}
12... h6 {[%clk 0:02:51.5]} 13. a4 {[%clk 0:02:50]} 13... Re8 {[%clk 0:02:50.3]}
14. Qe2 {[%clk 0:02:50.4]} 14... Bf8 {[%clk 0:02:46.6]} 15. Nc4 {[%clk
0:02:34.8]} 15... Ne4 {[%clk 0:02:39.9]} 16. Bxe4 {[%clk 0:02:27.9]} 16... Bxe4
{[%clk 0:02:37.4]} 17. Nxd6 {[%clk 0:02:28.8]} 17... Bxd6 {[%clk 0:02:31.8]} 18.
Bxd6 {[%clk 0:02:29.7]} 18... b5 {[%clk 0:02:14.1]} 19. axb5 {[%clk 0:02:23.6]}
19... axb5 {[%clk 0:02:13.1]} 20. Nd2 {[%clk 0:02:07.1]} 20... Bb7 {[%clk
0:02:11.5]} 21. Qxb5 {[%clk 0:02:04.8]} 21... Ba6 {[%clk 0:02:10.8]} 22. Qc6
{[%clk 0:01:47.4]} 22... Bxf1 {[%clk 0:02:08.4]} 23. Rxf1 {[%clk 0:01:48]} 23...
Qc8 {[%clk 0:01:59.5]} 24. Qb5 {[%clk 0:00:41.5]} 24... Qa6 {[%clk 0:01:58]} 25.
Qxa6 {[%clk 0:00:28.6]} 25... Rxa6 {[%clk 0:01:57.2]} 26. Bb4 {[%clk 0:00:29.5]}
26... Rc8 {[%clk 0:01:53.9]} 27. Bc3 {[%clk 0:00:27.5]} 27... Nb6 {[%clk
0:01:52.7]} 28. Ne4 {[%clk 0:00:27.1]} 28... Na4 {[%clk 0:01:49.6]} 29. Ra1
{[%clk 0:00:25.7]} 29... Nxc3 {[%clk 0:01:47.8]} 30. Rxa6 {[%clk 0:00:19.2]}
30... Nxe4 {[%clk 0:01:47.3]} 31. f3 {[%clk 0:00:18.3]} 31... Rc1+ {[%clk
0:01:41.1]} 32. Kh2 {[%clk 0:00:18.2]} 32... Nd2 {[%clk 0:01:39.4]} 33. h4
{[%clk 0:00:17.8]} 33... Nf1+ {[%clk 0:01:37]} 34. Kh3 {[%clk 0:00:17.6]} 34...
Nxe3 {[%clk 0:01:36.7]} 35. Ra8+ {[%clk 0:00:17.2]} 35... Kh7 {[%clk 0:01:35.8]}
36. g4 {[%clk 0:00:17]} 36... g5 {[%clk 0:01:30.6]} 37. hxg5 {[%clk 0:00:13.5]}
37... hxg5 {[%clk 0:01:30.4]} 38. b4 {[%clk 0:00:13.8]} 38... Rb1 {[%clk
0:01:27.7]} 39. Rb8 {[%clk 0:00:13.4]} 39... Nd5 {[%clk 0:01:27]} 40. b5 {[%clk
0:00:11.9]} 40... Rb2 {[%clk 0:01:23.2]} 0-1

[Event "*** Titled Tuesday Blitz"]
[Site "Chess.com"]
[Date "2020.03.03"]
[Round "3"]
[White "platy3"]
[Black "Boorchess"]
[Result "1-0"]
[WhiteElo "2864"]
[BlackElo "2516"]
[TimeControl "180+1"]
[EndTime "9:28:39 PST"]
[Termination "platy3 won by resignation"]

1. e4 {[%clk 0:02:57.5]} 1... e6 {[%clk 0:02:59.3]} 2. d4 {[%clk 0:02:56.3]}
2... d5 {[%clk 0:02:59]} 3. Nd2 {[%clk 0:02:57.2]} 3... c5 {[%clk 0:02:57]} 4.
Ngf3 {[%clk 0:02:55.9]} 4... Nc6 {[%clk 0:02:56.5]} 5. exd5 {[%clk 0:02:54.4]}
5... exd5 {[%clk 0:02:55.9]} 6. Bb5 {[%clk 0:02:54.6]} 6... Bd6 {[%clk
0:02:54.3]} 7. dxc5 {[%clk 0:02:53.4]} 7... Bxc5 {[%clk 0:02:54.2]} 8. O-O
{[%clk 0:02:54.3]} 8... Ne7 {[%clk 0:02:53.2]} 9. Nb3 {[%clk 0:02:54.2]} 9...
Bd6 {[%clk 0:02:53]} 10. h3 {[%clk 0:02:54.3]} 10... O-O {[%clk 0:02:51.7]} 11.
Bg5 {[%clk 0:02:54.8]} 11... f6 {[%clk 0:02:50.8]} 12. Be3 {[%clk 0:02:54]}
12... Be6 {[%clk 0:02:46.1]} 13. c3 {[%clk 0:02:52.4]} 13... Nf5 {[%clk
0:02:37.9]} 14. Bc5 {[%clk 0:02:51.5]} 14... a6 {[%clk 0:02:33]} 15. Bxc6 {[%clk
0:02:50.4]} 15... bxc6 {[%clk 0:02:32.2]} 16. Re1 {[%clk 0:02:51.1]} 16... Bf7
{[%clk 0:02:30.8]} 17. Nfd4 {[%clk 0:02:51.3]} 17... Nxd4 {[%clk 0:02:29]} 18.
Qxd4 {[%clk 0:02:50.7]} 18... Be5 {[%clk 0:02:25.6]} 19. Qa4 {[%clk 0:02:50.2]}
19... Re8 {[%clk 0:02:15.2]} 20. Qxc6 {[%clk 0:02:50.2]} 20... a5 {[%clk
0:01:47.9]} 21. Qa4 {[%clk 0:02:43]} 21... Qc8 {[%clk 0:01:38.9]} 22. Rad1
{[%clk 0:02:25.6]} 22... Re6 {[%clk 0:01:32.3]} 23. Be3 {[%clk 0:02:12.3]} 23...
Rc6 {[%clk 0:01:23]} 24. Nd4 {[%clk 0:02:04.1]} 24... Rc4 {[%clk 0:01:19.8]} 25.
Qc2 {[%clk 0:02:04.5]} 25... a4 {[%clk 0:01:18.1]} 26. a3 {[%clk 0:01:59]} 26...
Rb8 {[%clk 0:01:12.2]} 27. Nf3 {[%clk 0:01:59]} 27... Qb7 {[%clk 0:01:02.6]} 28.
Nxe5 {[%clk 0:01:57.1]} 28... fxe5 {[%clk 0:01:01.6]} 29. Bc1 {[%clk 0:01:54.8]}
29... e4 {[%clk 0:00:48.6]} 30. Qe2 {[%clk 0:01:45.7]} 30... Rbc8 {[%clk
0:00:40.4]} 31. Qg4 {[%clk 0:01:44]} 31... Qc6 {[%clk 0:00:30.1]} 32. Be3 {[%clk
0:01:40.5]} 32... Rb8 {[%clk 0:00:15.6]} 33. Rd2 {[%clk 0:01:39.1]} 33... Qf6
{[%clk 0:00:12.8]} 34. Bd4 {[%clk 0:01:38]} 34... Qh6 {[%clk 0:00:12.4]} 35. Re3
{[%clk 0:01:34.6]} 35... Rf8 {[%clk 0:00:09.7]} 36. Rg3 {[%clk 0:01:31.3]} 36...
Bg6 {[%clk 0:00:07.3]} 37. Be3 {[%clk 0:01:31.6]} 1-0

[Event "*** Titled Tuesday Blitz"]
[Site "Chess.com"]
[Date "2020.03.03"]
[Round "3"]
[White "politeplayer"]
[Black "Gogolev_Artemy"]
[Result "1-0"]
[WhiteElo "2260"]
[BlackElo "2491"]
[TimeControl "180+1"]
[EndTime "9:28:42 PST"]
[Termination "politeplayer won by resignation"]

1. e4 {[%clk 0:02:58.5]} 1... c5 {[%clk 0:02:57.3]} 2. Nf3 {[%clk 0:02:58.8]}
2... Nf6 {[%clk 0:02:57.7]} 3. Nc3 {[%clk 0:02:57]} 3... d5 {[%clk 0:02:57.6]}
4. exd5 {[%clk 0:02:56.9]} 4... Nxd5 {[%clk 0:02:58.5]} 5. Bb5+ {[%clk
0:02:57.1]} 5... Bd7 {[%clk 0:02:58.3]} 6. Ne5 {[%clk 0:02:52.2]} 6... Nf6
{[%clk 0:02:55.5]} 7. Nxd7 {[%clk 0:02:41.9]} 7... Nbxd7 {[%clk 0:02:56.4]} 8.
d4 {[%clk 0:02:37.8]} 8... e6 {[%clk 0:02:55.1]} 9. dxc5 {[%clk 0:02:32.5]} 9...
Bxc5 {[%clk 0:02:56]} 10. Bg5 {[%clk 0:02:24.4]} 10... a6 {[%clk 0:02:54]} 11.
Bxf6 {[%clk 0:02:15.5]} 11... gxf6 {[%clk 0:02:53.4]} 12. Bxd7+ {[%clk
0:02:10.2]} 12... Qxd7 {[%clk 0:02:51]} 13. Qxd7+ {[%clk 0:02:07]} 13... Kxd7
{[%clk 0:02:47.7]} 14. Ne4 {[%clk 0:02:04.2]} 14... Bb4+ {[%clk 0:02:30.2]} 15.
c3 {[%clk 0:02:03.1]} 15... Be7 {[%clk 0:02:25.3]} 16. O-O-O+ {[%clk 0:02:01.1]}
16... Kc7 {[%clk 0:02:02.5]} 17. Rd4 {[%clk 0:01:59.9]} 17... Rad8 {[%clk
0:02:01]} 18. Rhd1 {[%clk 0:01:54.1]} 18... Rxd4 {[%clk 0:01:47.6]} 19. Rxd4
{[%clk 0:01:53.1]} 19... f5 {[%clk 0:01:47.1]} 20. Rc4+ {[%clk 0:01:48.8]} 20...
Kd7 {[%clk 0:01:41.2]} 21. Nc5+ {[%clk 0:01:43.5]} 21... Bxc5 {[%clk 0:01:36.6]}
22. Rxc5 {[%clk 0:01:43.5]} 22... Rg8 {[%clk 0:01:36.5]} 23. g3 {[%clk
0:01:43.4]} 23... Rg4 {[%clk 0:01:34.4]} 24. f4 {[%clk 0:01:40.7]} 24... h5
{[%clk 0:01:33]} 25. Re5 {[%clk 0:01:35.5]} 25... h4 {[%clk 0:01:32.1]} 26. Re3
{[%clk 0:01:35.5]} 26... Kd6 {[%clk 0:01:27.8]} 27. Kc2 {[%clk 0:01:28.8]} 27...
Kd5 {[%clk 0:01:27.4]} 28. Re5+ {[%clk 0:01:23.7]} 28... Kd6 {[%clk 0:01:26.1]}
29. Re3 {[%clk 0:01:23.4]} 29... f6 {[%clk 0:01:24.9]} 30. c4 {[%clk 0:01:18.7]}
30... e5 {[%clk 0:01:22.1]} 31. Rd3+ {[%clk 0:01:17.9]} 31... Ke6 {[%clk
0:01:19]} 32. Rf3 {[%clk 0:00:59.8]} 32... e4 {[%clk 0:01:11.4]} 33. Rb3 {[%clk
0:00:46.4]} 33... Rg7 {[%clk 0:01:07.8]} 34. Rb6+ {[%clk 0:00:44.2]} 34... Kf7
{[%clk 0:01:03]} 35. Rxb7+ {[%clk 0:00:42.9]} 35... Kg6 {[%clk 0:01:03.3]} 36.
Rxg7+ {[%clk 0:00:41.6]} 36... Kxg7 {[%clk 0:01:04.2]} 37. gxh4 {[%clk
0:00:39.7]} 1-0

[Event "*** Titled Tuesday Blitz"]
[Site "Chess.com"]
[Date "2020.03.03"]
[Round "3"]
[White "Ceejay271"]
[Black "giantslayer83"]
[Result "0-1"]
[WhiteElo "2306"]
[BlackElo "2596"]
[TimeControl "180+1"]
[EndTime "9:28:45 PST"]
[Termination "giantslayer83 won on time"]

1. d4 {[%clk 0:03:00.9]} 1... Nf6 {[%clk 0:02:56.8]} 2. c4 {[%clk 0:03:00.7]}
2... g6 {[%clk 0:02:54.9]} 3. Nc3 {[%clk 0:03:00.5]} 3... Bg7 {[%clk 0:02:55]}
4. e4 {[%clk 0:03:00.3]} 4... O-O {[%clk 0:02:55.1]} 5. Nf3 {[%clk 0:02:57.7]}
5... d6 {[%clk 0:02:55.2]} 6. Be2 {[%clk 0:02:57.3]} 6... e5 {[%clk 0:02:54.3]}
7. d5 {[%clk 0:02:57]} 7... a5 {[%clk 0:02:53.4]} 8. Bg5 {[%clk 0:02:56.4]} 8...
Na6 {[%clk 0:02:53]} 9. Nd2 {[%clk 0:02:55.4]} 9... h6 {[%clk 0:02:51.1]} 10.
Be3 {[%clk 0:02:54.8]} 10... Nd7 {[%clk 0:02:41.3]} 11. g4 {[%clk 0:02:51.6]}
11... Ndc5 {[%clk 0:02:40.4]} 12. a3 {[%clk 0:02:07.3]} 12... Bd7 {[%clk
0:02:38.2]} 13. b3 {[%clk 0:02:01.6]} 13... f5 {[%clk 0:02:32.8]} 14. gxf5
{[%clk 0:02:00.9]} 14... gxf5 {[%clk 0:02:33.7]} 15. f3 {[%clk 0:01:59.6]} 15...
fxe4 {[%clk 0:02:32.2]} 16. Ndxe4 {[%clk 0:01:58]} 16... Bf5 {[%clk 0:02:22.5]}
17. Qc2 {[%clk 0:01:45.9]} 17... Nxe4 {[%clk 0:02:19.9]} 18. fxe4 {[%clk
0:01:43.8]} 18... Qh4+ {[%clk 0:02:19.3]} 19. Kd2 {[%clk 0:01:40.8]} 19... Bh7
{[%clk 0:02:15.4]} 20. Rag1 {[%clk 0:00:59.6]} 20... Kh8 {[%clk 0:01:58.6]} 21.
Rg4 {[%clk 0:00:58.7]} 21... Qh3 {[%clk 0:01:50.7]} 22. Rhg1 {[%clk 0:00:58.2]}
22... Rf7 {[%clk 0:01:49.5]} 23. R4g3 {[%clk 0:00:51.1]} 23... Qxh2 {[%clk
0:01:47]} 24. R1g2 {[%clk 0:00:51.2]} 24... Qh4 {[%clk 0:01:28.8]} 25. Rg4
{[%clk 0:00:50.9]} 25... Qe7 {[%clk 0:01:28.5]} 26. Rh2 {[%clk 0:00:49.1]} 26...
Nc5 {[%clk 0:01:28]} 27. Bxh6 {[%clk 0:00:28.8]} 27... Bxh6+ {[%clk 0:01:27.2]}
28. Rxh6 {[%clk 0:00:27.5]} 28... Rg8 {[%clk 0:01:28.1]} 29. Rgh4 {[%clk
0:00:21.5]} 29... Qg5+ {[%clk 0:01:14.2]} 30. Kd1 {[%clk 0:00:10.3]} 30... Qe3
{[%clk 0:01:13.6]} 31. b4 {[%clk 0:00:02.4]} 31... Rg1+ {[%clk 0:01:13]} 0-1

[Event "*** Titled Tuesday Blitz"]
[Site "Chess.com"]
[Date "2020.03.03"]
[Round "3"]
[White "Funkmaus"]
[Black "RestartingChess"]
[Result "1/2-1/2"]
[WhiteElo "2223"]
[BlackElo "2387"]
[TimeControl "180+1"]
[EndTime "9:29:00 PST"]
[Termination "Game drawn by repetition"]

1. d4 {[%clk 0:03:00.9]} 1... Nf6 {[%clk 0:02:59.5]} 2. Nf3 {[%clk 0:03:00.9]}
2... g6 {[%clk 0:02:59.9]} 3. g3 {[%clk 0:03:01.6]} 3... Bg7 {[%clk 0:03:00.6]}
4. Bg2 {[%clk 0:03:02.3]} 4... O-O {[%clk 0:03:01.3]} 5. O-O {[%clk 0:03:02.9]}
5... d6 {[%clk 0:03:02.2]} 6. c3 {[%clk 0:03:02.4]} 6... c5 {[%clk 0:03:03.1]}
7. Nbd2 {[%clk 0:02:54.6]} 7... cxd4 {[%clk 0:03:04]} 8. Nxd4 {[%clk 0:02:52.2]}
8... Nbd7 {[%clk 0:03:04.6]} 9. N2f3 {[%clk 0:02:49.3]} 9... Nc5 {[%clk
0:03:04.9]} 10. Nb3 {[%clk 0:02:47.8]} 10... Qb6 {[%clk 0:03:04.3]} 11. h3
{[%clk 0:02:41.7]} 11... Nxb3 {[%clk 0:03:04.3]} 12. Qxb3 {[%clk 0:02:31.9]}
12... Qxb3 {[%clk 0:03:04.2]} 13. axb3 {[%clk 0:02:32.8]} 13... Be6 {[%clk
0:03:04.4]} 14. b4 {[%clk 0:02:29.3]} 14... a6 {[%clk 0:03:04.5]} 15. Nd4 {[%clk
0:02:28.1]} 15... Bd5 {[%clk 0:03:03.5]} 16. Bg5 {[%clk 0:02:13.7]} 16... Bxg2
{[%clk 0:03:03.3]} 17. Kxg2 {[%clk 0:02:14.6]} 17... Nd5 {[%clk 0:03:02.7]} 18.
Nb3 {[%clk 0:02:03]} 18... h6 {[%clk 0:03:02.8]} 19. Bd2 {[%clk 0:01:57.2]}
19... Nb6 {[%clk 0:03:02.9]} 20. Na5 {[%clk 0:01:50.8]} 20... Rab8 {[%clk
0:03:03.2]} 21. Rfd1 {[%clk 0:01:44.4]} 21... Rfc8 {[%clk 0:03:03.7]} 22. Be3
{[%clk 0:01:24.4]} 22... Nc4 {[%clk 0:02:59.2]} 23. Nxc4 {[%clk 0:01:23.2]}
23... Rxc4 {[%clk 0:03:00.1]} 24. Ra5 {[%clk 0:01:18.4]} 24... Re4 {[%clk
0:02:25.8]} 25. Kf3 {[%clk 0:01:12.6]} 25... Re5 {[%clk 0:02:22.9]} 26. Rad5
{[%clk 0:01:05.3]} 26... Rxd5 {[%clk 0:02:20.9]} 27. Rxd5 {[%clk 0:01:06.2]}
27... Rc8 {[%clk 0:02:18.5]} 28. Bd4 {[%clk 0:01:02.7]} 28... Bxd4 {[%clk
0:02:15]} 29. Rxd4 {[%clk 0:01:03.6]} 29... Kg7 {[%clk 0:02:15.7]} 30. e4 {[%clk
0:01:02.8]} 30... Kf6 {[%clk 0:02:15]} 31. Ke3 {[%clk 0:01:02.3]} 31... g5
{[%clk 0:02:08.7]} 32. f4 {[%clk 0:01:00.3]} 32... gxf4+ {[%clk 0:02:07.8]} 33.
gxf4 {[%clk 0:01:01.2]} 33... Rg8 {[%clk 0:02:06.8]} 34. Kf3 {[%clk 0:00:58.1]}
34... Rg1 {[%clk 0:02:06.2]} 35. Rd5 {[%clk 0:00:43]} 35... Rb1 {[%clk
0:02:01.5]} 36. Rd2 {[%clk 0:00:33.3]} 36... Rh1 {[%clk 0:01:43.4]} 37. Kg2
{[%clk 0:00:32]} 37... Re1 {[%clk 0:01:42.7]} 38. Kf3 {[%clk 0:00:30.3]} 38...
Ke6 {[%clk 0:01:41.3]} 39. f5+ {[%clk 0:00:29]} 39... Ke5 {[%clk 0:01:40.1]} 40.
Rd5+ {[%clk 0:00:28.5]} 40... Kf6 {[%clk 0:01:40.6]} 41. Rd2 {[%clk 0:00:24.3]}
41... Kg5 {[%clk 0:01:36.8]} 42. Rg2+ {[%clk 0:00:20.1]} 42... Kf6 {[%clk
0:01:31.5]} 43. Rd2 {[%clk 0:00:19.6]} 43... Rg1 {[%clk 0:01:12.4]} 44. Kf2
{[%clk 0:00:15.8]} 44... Rh1 {[%clk 0:01:11.6]} 45. Kg2 {[%clk 0:00:15.8]} 45...
Re1 {[%clk 0:01:12.2]} 46. Kf3 {[%clk 0:00:16]} 1/2-1/2

[Event "*** Titled Tuesday Blitz"]
[Site "Chess.com"]
[Date "2020.03.03"]
[Round "3"]
[White "Firouzja2003"]
[Black "Aygehovit1992"]
[Result "1-0"]
[WhiteElo "3076"]
[BlackElo "2643"]
[TimeControl "180+1"]
[EndTime "9:29:05 PST"]
[Termination "Firouzja2003 won by resignation"]

1. c4 {[%clk 0:03:00.9]} 1... e5 {[%clk 0:02:59.3]} 2. Nc3 {[%clk 0:03:00.7]}
2... Nc6 {[%clk 0:02:58.8]} 3. Nf3 {[%clk 0:03:00.2]} 3... g6 {[%clk 0:02:57.9]}
4. e3 {[%clk 0:02:58.7]} 4... Bg7 {[%clk 0:02:57.6]} 5. d4 {[%clk 0:02:58.8]}
5... d6 {[%clk 0:02:56]} 6. Be2 {[%clk 0:02:58.1]} 6... Nf6 {[%clk 0:02:55]} 7.
O-O {[%clk 0:02:55.1]} 7... O-O {[%clk 0:02:55]} 8. a3 {[%clk 0:02:47.3]} 8...
Re8 {[%clk 0:02:48.1]} 9. h3 {[%clk 0:02:44.5]} 9... e4 {[%clk 0:02:45.8]} 10.
Nd2 {[%clk 0:02:40.6]} 10... h5 {[%clk 0:02:46.2]} 11. b4 {[%clk 0:02:37.9]}
11... Bf5 {[%clk 0:02:43.8]} 12. b5 {[%clk 0:02:30.9]} 12... Nb8 {[%clk
0:02:37.5]} 13. a4 {[%clk 0:02:30.8]} 13... Nbd7 {[%clk 0:02:37.9]} 14. a5
{[%clk 0:02:22.2]} 14... c5 {[%clk 0:02:36]} 15. bxc6 {[%clk 0:02:20.2]} 15...
bxc6 {[%clk 0:02:35.4]} 16. Ba3 {[%clk 0:02:16.9]} 16... Nf8 {[%clk 0:02:30.2]}
17. Qa4 {[%clk 0:02:07.3]} 17... Qd7 {[%clk 0:02:28.4]} 18. Rfd1 {[%clk
0:02:01.1]} 18... N8h7 {[%clk 0:02:27.2]} 19. Bf1 {[%clk 0:01:58.3]} 19... Ng5
{[%clk 0:02:22]} 20. Rac1 {[%clk 0:01:51.7]} 20... Bxh3 {[%clk 0:02:12.8]} 21.
gxh3 {[%clk 0:01:51.1]} 21... Nxh3+ {[%clk 0:02:12.7]} 22. Bxh3 {[%clk
0:01:49.6]} 22... Qxh3 {[%clk 0:02:12.1]} 23. Bxd6 {[%clk 0:01:48.3]} 23... Rad8
{[%clk 0:01:58.4]} 24. Qxc6 {[%clk 0:01:34.3]} 24... Qg4+ {[%clk 0:01:05.4]} 25.
Kf1 {[%clk 0:01:23.9]} 25... Qh3+ {[%clk 0:01:05.5]} 26. Ke1 {[%clk 0:01:22.4]}
26... Ng4 {[%clk 0:01:05.3]} 27. Ndxe4 {[%clk 0:01:14]} 27... Nxe3 {[%clk
0:00:57.8]} 28. fxe3 {[%clk 0:01:11.2]} 28... Qxe3+ {[%clk 0:00:58.7]} 29. Kf1
{[%clk 0:01:11.7]} 29... Qf3+ {[%clk 0:00:43.7]} 30. Kg1 {[%clk 0:01:10.4]}
30... Qe3+ {[%clk 0:00:28.1]} 31. Kg2 {[%clk 0:01:08.1]} 31... h4 {[%clk
0:00:17.3]} 32. Rf1 {[%clk 0:01:07.1]} 32... Bxd4 {[%clk 0:00:13.3]} 33. Rce1
{[%clk 0:01:03.2]} 33... Qd3 {[%clk 0:00:11.8]} 34. Qd5 {[%clk 0:01:03.3]} 34...
h3+ {[%clk 0:00:11.5]} 35. Kh1 {[%clk 0:01:02.8]} 35... Qc2 {[%clk 0:00:07.1]}
36. Re2 {[%clk 0:01:01.9]} 36... Rxd6 {[%clk 0:00:06.2]} 37. Qxf7+ {[%clk
0:01:01.1]} 1-0